[Event "2nd Serbia Open Masters 2022"]
[Site "Novi Sad"]
[Date "2022.07.01"]
[Round "4.13"]
[White "Narva, Mai"]
[Black "Petkov, Momchil"]
[Result "1-0"]
[ECO "B41"]
[WhiteElo "2385"]
[BlackElo "2494"]
[Annotator "TA"]
[PlyCount "73"]
[EventDate "2022.06.28"]
[EventType "swiss"]
[EventCountry "SRB"]
[SourceTitle "playchess.com"]
[Source "ChessBase"]
[SourceQuality "1"]
[TimeControl "40/5400+30:900+30"]

{[%evp 14,73,39,30,52,52,46,21,40,37,52,23,47,-31,-12,-7,285,280,271,285,259,294,276,278,279,291,283,300,299,283,299,288,279,264,281,270,519,521,464,456,537,520,1032,1037,950,416,1152,1137,1077,1044,2205,1922,29970,29959,29970,2312,29965,29966,6299,6807,29981,29981]} 1. e4 {[%emt 0:03:53]} c5 {[%emt 0:00:12]} 2. Nf3 {[%emt 0:00:13]} e6 {[%emt 0:00:30]} 3. d4 {[%emt 0:00:49]} cxd4 {[%emt 0:00:14]} 4. Nxd4 {[%emt 0:00:11]} a6 {[%emt 0:00:12]} 5. c4 {[%emt 0:01:14]} Nf6 {[%emt 0:00:39]} 6. Nc3 {[%emt 0:01:13]} Qc7 {[%emt 0:00:50]} 7. Be2 {[%emt 0:02:02]} Bb4 {[%emt 0:00:48]} 8. Nc2 {[%emt 0:03:29]} Bd6 {[%emt 0:13:14] Recently 8...Bxc3+ got a lot of attention. B41: Sicilian: Kan Variation: 5 c4.} 9. g3 {[%emt 0:14:06] [#]} Be5 $146 {[%emt 0:21:15]} ({Predecessor:} 9... Be7 10. f4 d6 11. Be3 Nc6 12. Qd2 Na5 13. b3 Bd7 14. Rc1 Rc8 15. Nd4 O-O 16. g4 {0-1 (43) Saumy,Z (1892)-Vo,T (2349) Ashkhabad 2017}) 10. Qd3 {[%emt 0:20:19]} b5 {[%emt 0:09:14] The position is equal.} 11. cxb5 {[%emt 0:10:11][%cal Bc4b5,Bb5b6,Bb6b7][%mdl 32]} Bb7 {[%emt 0:00:08] [#] aiming for ...Bxc3+.} 12. Nd4 {[%emt 0:04:55]} O-O {[%emt 0:28:05][%cal Of6e4]} 13. f4 {[%emt 0:10:37]} (13. O-O $14) 13... Bxd4 $15 {[%emt 0:00:25]} 14. Qxd4 {[%emt 0:00:09]} Nxe4 $2 {[%emt 0:02:08][%mdl 8192] Loses the game.} 15. Nxe4 $18 {[%emt 0:02:41] Strongly threatening b6.} f5 {[%emt 0:00:08]} 16. b6 {[%emt 0:04:50]} Qd8 {[%emt 0:01:52]} 17. Nf2 {[%emt 0:05:48]} Bxh1 {[%emt 0:00:05]} 18. Nxh1 {[%emt 0:00:03] [#] Black must now prevent b7.} Nc6 {[%emt 0:00:03]} 19. Qc5 {[%emt 0:00:59]} Ne7 {[%emt 0:03:09]} 20. b7 {[%emt 0:06:31]} Rb8 {[%emt 0:01:43]} 21. Bxa6 {[%emt 0:00:16]} d6 {[%emt 0:00:40]} 22. Qc4 {[%emt 0:00:43]} Nd5 {[%emt 0:01:04]} 23. Bd2 {[%emt 0:04:11]} Qb6 {[%emt 0:01:00]} 24. Rc1 {[%emt 0:01:05] And now Qc6 would win.} Qg1+ $2 {[%emt 0:07:39]} (24... Nc7 {keeps fighting.}) 25. Ke2 {[%emt 0:01:25]} Qxh2+ {[%emt 0:01:03]} 26. Nf2 {[%emt 0:00:24]} Qxg3 {[%emt 0:01:30]} 27. Qd4 {[%emt 0:00:14]} Nf6 {[%emt 0:05:31]} (27... Qh4 $142 28. Rc8 Qh5+ 29. Ke1 Qf7) 28. Rc8 {[%emt 0:00:56] Active counter play!} Qg2 {[%emt 0:00:35]} 29. Be3 {[%emt 0:00:58] This bishop pair is nice.} ({Not} 29. Qxd6 Qxf2+ 30. Kd1 Qf3+ 31. Be2 Qh1+ 32. Be1 Qd5+ 33. Qxd5 Nxd5 $16) (29. Bb4 $142 Qd5 30. Qxd5 Nxd5 31. Bxd6 Rfxc8 32. bxc8=Q+ Rxc8 33. Bxc8) 29... Ne4 {[%emt 0:00:32]} (29... Rxb7 $142 30. Rxf8+ (30. Qxd6 Rxb2+ 31. Kd3 Qd5+ 32. Qxd5 Nxd5 $17) 30... Kxf8 31. Bxb7 Qxb7 32. Qxd6+ Kf7) 30. Rxb8 Rxb8 {[%emt 0:00:10]} 31. Qa7 {[%emt 0:00:58]} Ng3+ {[%emt 0:00:05]} 32. Ke1 {[%emt 0:00:32]} Qg1+ {[%emt 0:00:55]} 33. Kd2 {[%emt 0:00:07]} Rxb7 {[%emt 0:00:04]} 34. Qxb7 {[%emt 0:00:19]} (34. Qa8+ $142 Kf7 35. Qxb7+ Kg6 36. Qe7 h5 37. Qxe6+ Kh7 38. Bc4 d5 39. Qxd5 Nf1+ 40. Bxf1 Qxf1 41. Qxf5+ Kg8 42. Ne4) 34... h5 {[%emt 0:00:57]} 35. Qc8+ {[%emt 0:00:32]} Kh7 {[%emt 0:00:04]} 36. Qxe6 {[%emt 0:00:35] White threatens Bc4 and mate.} Qb1 {[%emt 0:01:09]} 37. Bd4 {[%emt 0:00:33] Weighted Error Value: White=0.28 (precise) /Black=1.10} 1-0

[Event "2nd Serbia Open Masters 2022"]
[Site "Novi Sad"]
[Date "2022.07.01"]
[Round "4.14"]
[White "Injac, Teodora"]
[Black "Fernandez, Daniel Howard"]
[Result "1-0"]
[ECO "A11"]
[WhiteElo "2384"]
[BlackElo "2503"]
[Annotator "TA"]
[PlyCount "67"]
[EventDate "2022.06.28"]
[EventType "swiss"]
[EventCountry "SRB"]
[SourceTitle "playchess.com"]
[Source "ChessBase"]
[SourceQuality "1"]
[TimeControl "40/5400+30:900+30"]

{[%evp 9,67,14,36,39,41,35,36,35,21,20,46,61,63,64,56,54,45,52,131,35,43,62,77,66,59,62,97,79,79,80,175,73,80,65,81,54,322,322,322,322,322,322,400,343,343,343,343,343,418,420,427,329,304,301,1449,1210,29975,29976,29974,29973]} 1. Nf3 {[%emt 0:00:04]} d5 {[%emt 0:09:05]} 2. g3 {[%emt 0:00:33]} c6 {[%emt 0:01:59]} 3. Bg2 {[%emt 0:01:07]} Bg4 {[%emt 0:01:13]} 4. c4 {[%emt 0:03:06]} e6 {[%emt 0:05:12]} 5. O-O {[%emt 0:02:23]} h5 {[%emt 0:01:38]} 6. d4 {[%emt 0:22:21] A11: English Opening: 1...c6.} Nd7 {[%emt 0:01:20]} 7. cxd5 {[%emt 0:05:18]} exd5 {[%emt 0:05:40] [#]} 8. Nc3 $146 {[%emt 0:00:46] White is slightly better.} ({Predecessor:} 8. Bf4 Qb6 9. Qd2 Bb4 10. Nc3 Ne7 11. a3 Bxc3 12. bxc3 Qd8 13. e4 O-O 14. h3 dxe4 {½-½ (49) Peschen,R (2146)-Richter,W (2357) Remote email 2012}) 8... Be7 {[%emt 0:02:25]} 9. Re1 {[%emt 0:06:10]} h4 {[%emt 0:00:57]} 10. e4 {[%emt 0:01:07]} hxg3 {[%emt 0:00:15]} 11. hxg3 {[%emt 0:00:50]} dxe4 {[%emt 0:10:17]} 12. Nxe4 {[%emt 0:00:54]} Kf8 {[%emt 0:02:31]} 13. d5 {[%emt 0:14:17]} Qa5 {[%emt 0:01:51]} ({Better is} 13... cxd5 $14 14. Qxd5 Nc5 15. Qxd8+ Rxd8) 14. Nc3 {[%emt 0:03:11]} (14. dxc6 $16 bxc6 15. Neg5) 14... Rd8 $14 {[%emt 0:08:23]} 15. Qd4 {[%emt 0:06:42]} Bxf3 {[%emt 0:02:41]} 16. Bxf3 {[%emt 0:00:09]} Bf6 {[%emt 0:00:47]} 17. Qe4 {[%emt 0:07:13]} cxd5 {[%emt 0:10:08]} 18. Nxd5 {[%emt 0:05:02] Bf4 is the strong threat.} Ne5 {[%emt 0:00:41] [#]} 19. Bg2 {[%emt 0:06:38] Threatens to win with Bf4.} Nd3 {[%emt 0:07:10]} (19... Rxd5 $2 20. b4 Qb5 21. Qxd5 Qxd5 22. Bxd5 $18) (19... Nc6 $16) 20. Rf1 {[%emt 0:01:47] The board is on fire.} (20. Rd1 $18 Nxc1 21. b4 (21. Raxc1 g6 $16) (21. Rdxc1 $2 Bxb2 22. Rab1 Bxc1 $19)) 20... Nxc1 $16 {[%emt 0:06:47]} 21. Raxc1 {[%emt 0:00:23]} Bxb2 {[%emt 0:01:58]} 22. Rb1 {[%emt 0:01:26][%cal Bc1b1,Bb1b2,Bb2b3,Bb3d3][%mdl 32] White is more active.} Nf6 $2 {[%emt 0:01:01][%mdl 8192] Black cannot hold the game after this.} (22... Rh5 $14) 23. Qe7+ $18 {[%emt 0:04:45]} Kg8 {[%emt 0:00:01]} 24. Rxb2 {[%emt 0:00:12][%cal Ob2b5] aiming for Rb5!} Nxd5 {[%emt 0:00:01] [#]} 25. Qg5 {[%emt 0:01:20] Black must now prevent Rd1.} g6 {[%emt 0:01:46]} 26. Rd1 {[%emt 0:00:42][%cal Rg2d5]} Rh5 {[%emt 0:00:23]} 27. Qd2 {[%emt 0:00:14]} Qa6 {[%emt 0:04:25]} 28. Rb3 {[%emt 0:00:17]} Kg7 {[%emt 0:04:48][%cal Od5f4]} 29. Rd3 {[%emt 0:00:29]} ({Weaker is} 29. Bxd5 Rhxd5 30. Qb2+ Qf6 31. Rxd5 Qxb2 32. Rxb2 Rxd5 $15) 29... Nf4 {[%emt 0:00:06]} 30. gxf4 {[%emt 0:01:36]} ({And not} 30. Rxd8 Ne2+ 31. Kf1 Nxg3+ 32. Kg1 Ne2+ 33. Kf1 Ng3+ 34. Kg1 Ne2+ 35. Kf1 Ng3+ $11) 30... Rxd3 {[%emt 0:00:01]} 31. Qxd3 {[%emt 0:00:06]} Qxa2 $2 {[%emt 0:00:05]} (31... Qxd3 32. Rxd3 b6) 32. Qd4+ {[%emt 0:00:24]} Kg8 {[%emt 0:00:31]} 33. Qf6 {[%emt 0:00:48]} Kh7 {[%emt 0:00:01] [#]} 34. Bd5 $1 {[%emt 0:02:03][%mdl 512] Weighted Error Value: White=0.17 (very precise) /Black=0.54} 1-0

[Event "2nd Serbia Open Masters 2022"]
[Site "Novi Sad"]
[Date "2022.07.01"]
[Round "4.15"]
[White "Aditya Mittal"]
[Black "Urazayev, Arystanbek"]
[Result "1-0"]
[ECO "D30"]
[WhiteElo "2490"]
[BlackElo "2445"]
[Annotator "TA"]
[PlyCount "173"]
[EventDate "2022.06.28"]
[EventType "swiss"]
[EventCountry "SRB"]
[SourceTitle "playchess.com"]
[Source "ChessBase"]
[SourceQuality "1"]
[TimeControl "40/5400+30:900+30"]

{[%evp 9,173,29,33,35,33,30,39,41,33,12,38,35,33,29,28,37,60,33,36,38,46,35,43,30,54,13,16,7,26,27,33,23,21,13,16,12,30,20,27,31,40,33,39,36,36,33,34,31,34,27,71,70,72,72,75,75,93,93,112,107,107,107,107,107,107,103,92,85,85,85,85,85,85,85,114,91,91,39,41,41,41,41,41,41,41,41,41,39,163,163,183,42,183,42,42,42,42,42,42,42,42,42,42,42,42,42,77,77,77,42,42,42,77,77,77,42,42,42,42,0,42,34,35,0,42,42,42,35,42,8,8,0,42,42,42,42,85,42,77,77,77,77,77,77,77,77,77,77,77,0,0,8,29966,9700,29975,29976,29976,29977,29977,29978,29978,29976,29976,29976,29982,29977]} 1. d4 {[%emt 0:00:04]} d5 {[%emt 0:01:25]} 2. c4 {[%emt 0:00:05]} e6 {[%emt 0:00:12]} 3. Nf3 {[%emt 0:00:05]} a6 {[%emt 0:01:23]} 4. Bg5 {[%emt 0:00:12]} Be7 {[%emt 0:00:10]} 5. Bxe7 {[%emt 0:00:06]} Nxe7 {[%emt 0:00:04]} 6. Nbd2 {[%emt 0:00:08] D30: Queen's Gambit Declined: Systems without Nc3.} O-O {[%emt 0:03:24]} 7. g3 {[%emt 0:00:03]} Nd7 {[%emt 0:00:24]} 8. Bg2 {[%emt 0:00:05] White is slightly better.} c5 {[%emt 0:02:55]} 9. O-O {[%emt 0:00:08] [#]} cxd4 $146 {[%emt 0:02:48]} ({Predecessor:} 9... b5 10. cxd5 Nxd5 11. Ne4 c4 12. b3 cxb3 13. axb3 Bb7 14. Nd6 Bc6 15. Rc1 Nb8 {½-½ (50) Beydullayeva,G (2384)-Fataliyeva,U (2348) Baku 2022}) 10. cxd5 {[%emt 0:04:52]} Nxd5 {[%emt 0:06:54][%cal Od4d3]} 11. Nxd4 {[%emt 0:00:12]} Ne5 {[%emt 0:01:41]} 12. Qb3 {[%emt 0:13:19]} Qa5 {[%emt 0:10:45]} 13. N2f3 {[%emt 0:10:45]} Nxf3+ {[%emt 0:01:03]} 14. Bxf3 {[%emt 0:00:10]} Nf6 {[%emt 0:12:12]} 15. Qe3 {[%emt 0:05:27]} ({Don't play} 15. Bxb7 Rb8 16. Nc6 Qc7 17. Nxb8 Bxb7 $11) 15... e5 {[%emt 0:10:44]} 16. Nb3 {[%emt 0:00:16]} Qb5 {[%emt 0:00:13]} 17. Rfc1 {[%emt 0:02:42]} e4 {[%emt 0:04:42]} 18. Rc5 {[%emt 0:14:40]} Qe8 {[%emt 0:01:25]} 19. Bg2 {[%emt 0:00:51]} Bd7 {[%emt 0:03:39]} 20. Qc3 {[%emt 0:11:02]} Rc8 {[%emt 0:04:00]} 21. Qd4 {[%emt 0:07:30]} Bc6 {[%emt 0:11:08]} 22. Rac1 {[%emt 0:06:30]} Qe6 {[%emt 0:01:08]} 23. Re5 {[%emt 0:03:34]} Qg4 {[%emt 0:00:36]} 24. h3 {[%emt 0:01:33]} Qd7 {[%emt 0:05:07]} (24... Qxe2 $2 25. Bf1 Qf3 26. Nd2 $18) 25. g4 {[%emt 0:03:39]} Rfd8 {[%emt 0:01:18]} 26. Qxd7 {[%emt 0:02:23]} Nxd7 {[%emt 0:00:03]} 27. Ra5 {[%emt 0:00:01]} Nf8 {[%emt 0:00:53]} 28. e3 {[%emt 0:01:05]} Ne6 {[%emt 0:10:29] Inhibits Nd4.} 29. Re5 {[%emt 0:00:04][%cal Ba5e5,Be5e4,Be4b4][%mdl 32]} b6 {[%emt 0:01:54] Inhibits Na5.} 30. Bxe4 {[%emt 0:02:40]} Bxe4 {[%emt 0:00:14]} 31. Rxc8 {[%emt 0:00:01]} ({Don't go for} 31. Rxe4 $2 Rxc1+ 32. Nxc1 Rd1+ 33. Kg2 Rxc1 $19) 31... Rxc8 {[%emt 0:00:45]} 32. Rxe4 $16 {[%emt 0:00:02][%mdl 4096] Endgame KRN-KRN} Kf8 {[%emt 0:01:05]} 33. Rb4 $1 {[%emt 0:02:52]} Rc6 {[%emt 0:00:18]} 34. Nd4 {[%emt 0:01:33]} Nxd4 {[%emt 0:00:05]} 35. Rxd4 {[%emt 0:00:39] KR-KR} Rc2 {[%emt 0:00:17]} 36. Rb4 {[%emt 0:00:34]} b5 {[%emt 0:00:08]} 37. Kg2 {[%emt 0:01:40]} Ke7 {[%emt 0:00:09]} 38. a4 {[%emt 0:00:03]} bxa4 {[%emt 0:00:14]} 39. Re4+ {[%emt 0:01:51]} Kd7 {[%emt 0:00:25]} 40. Rxa4 {[%emt 0:00:00]} Rxb2 {[%emt 0:00:00]} 41. Rxa6 {[%emt 0:00:03]} Ke7 {[%emt 0:02:12]} 42. g5 {[%emt 0:08:37]} Rb5 {[%emt 0:05:34]} 43. f4 {[%emt 0:00:14]} (43. h4 $16) 43... Rb2+ $14 {[%emt 0:00:55]} 44. Kg3 {[%emt 0:00:45] Threatens to win with Ra7+.} Re2 {[%emt 0:00:35]} 45. Kf3 {[%emt 0:01:22]} Rh2 $1 {[%emt 0:00:49]} 46. Kg4 {[%emt 0:00:04] Hoping for Ra7+.} Re2 {[%emt 0:00:55]} 47. Ra3 {[%emt 0:04:03]} g6 {[%emt 0:01:32]} 48. h4 {[%emt 0:02:10]} Re1 {[%emt 0:01:29]} ({Better is} 48... Rg2+ $14 49. Kf3 Rh2) 49. h5 $1 $18 {[%emt 0:01:49]} gxh5+ {[%emt 0:05:20] [#]} 50. Kxh5 {[%emt 0:02:54]} (50. Kf5 $1 $18) 50... Rh1+ $1 $14 {[%emt 0:00:28]} 51. Kg4 {[%emt 0:00:02] aiming for Kf5.} h6 $1 {[%emt 0:00:35]} 52. Kf5 {[%emt 0:04:43] Ra7+ is the strong threat.} hxg5 {[%emt 0:00:14]} 53. Kxg5 {[%emt 0:00:06]} Rb1 {[%emt 0:00:58]} 54. e4 {[%emt 0:02:12]} Rg1+ {[%emt 0:00:56]} 55. Kf5 {[%emt 0:00:00]} Kf8 {[%emt 0:00:12]} 56. e5 {[%emt 0:00:00]} Kg7 {[%emt 0:00:53]} 57. Ra7 {[%emt 0:00:00]} Re1 {[%emt 0:00:13]} 58. Re7 {[%emt 0:00:11] Threatening mate with e6.} Ra1 {[%emt 0:01:09]} 59. Re8 {[%emt 0:00:53]} Rb1 {[%emt 0:00:37]} 60. Rd8 {[%emt 0:00:09]} Ra1 {[%emt 0:00:32]} 61. Rd7 {[%emt 0:00:29] e6 would kill now.} Re1 {[%emt 0:00:41]} 62. Rd2 {[%emt 0:00:05]} Rg1 {[%emt 0:00:22] Inhibits Rg2+.} 63. Ra2 {[%emt 0:00:16]} Rb1 {[%emt 0:00:46]} 64. Rd2 {[%emt 0:01:55]} Ra1 {[%emt 0:00:29]} 65. Ke4 {[%emt 0:00:18]} Re1+ {[%emt 0:00:29]} 66. Kf5 {[%emt 0:00:45]} Ra1 {[%emt 0:00:07]} 67. Rd3 {[%emt 0:00:20]} Rb1 {[%emt 0:00:45]} 68. Kg4 {[%emt 0:00:06]} Re1 {[%emt 0:00:18]} 69. Kg5 {[%emt 0:00:11]} Rg1+ {[%emt 0:00:30]} 70. Kf5 {[%emt 0:00:02]} Ra1 {[%emt 0:00:15]} 71. Rg3+ {[%emt 0:00:10]} Kf8 {[%emt 0:00:05]} 72. Kg5 {[%emt 0:00:11]} Kg7 {[%emt 0:00:38]} 73. Rg2 {[%emt 0:00:31]} Ra5 {[%emt 0:00:38]} 74. Kf5+ {[%emt 0:00:49]} Kf8 {[%emt 0:00:05]} 75. Rb2 {[%emt 0:00:10]} Kg7 {[%emt 0:01:20]} 76. Rb7 {[%emt 0:00:16]} Ra6 {[%emt 0:01:03]} 77. Rd7 {[%emt 0:00:42]} Rb6 {[%emt 0:00:56]} 78. Ke4 {[%emt 0:00:02]} Rb1 {[%emt 0:00:43]} 79. f5 {[%emt 0:00:37]} (79. Ra7 $16) 79... Re1+ $1 $11 {[%emt 0:01:26]} 80. Kd5 {[%emt 0:00:01] White threatens e6 and mate.} Rd1+ $2 {[%emt 0:00:46][%mdl 8192]} (80... Rf1 $11) 81. Kc6 {[%emt 0:00:01]} Rf1 {[%emt 0:00:35] [#]} 82. e6 $1 {[%emt 0:01:25][%cal Be5e6,Be6e7][%mdl 32] White mates.} Rxf5 {[%emt 0:00:05]} 83. e7 {[%emt 0:00:01]} Re5 {[%emt 0:00:19]} 84. Kc7 {[%emt 0:00:31]} Kg6 {[%emt 0:01:07]} 85. Rd6+ {[%emt 0:02:06]} Kf5 {[%emt 0:00:30]} 86. Kd8 {[%emt 0:01:53]} Kg4 {[%emt 0:00:30]} 87. Rf6 {[%emt 0:00:20] Weighted Error Value: White=0.08 (flawless) /Black=0.09 (flawless)} 1-0

[Event "2nd Serbia Open Masters 2022"]
[Site "Novi Sad"]
[Date "2022.07.01"]
[Round "4.16"]
[White "Song, Raymond"]
[Black "Ceres, Dragos"]
[Result "1/2-1/2"]
[ECO "C70"]
[WhiteElo "2485"]
[BlackElo "2380"]
[Annotator "TA"]
[PlyCount "44"]
[EventDate "2022.06.28"]
[EventType "swiss"]
[EventCountry "SRB"]
[SourceTitle "playchess.com"]
[Source "ChessBase"]
[SourceQuality "1"]
[TimeControl "40/5400+30:900+30"]

{[%evp 9,44,32,28,35,33,16,38,26,39,24,22,18,19,20,31,32,19,21,35,13,16,17,24,6,19,6,24,22,16,-8,-6,-13,-6,-10,-20,-23,0]} 1. e4 {[%emt 0:00:03]} e5 {[%emt 0:06:10]} 2. Nf3 {[%emt 0:00:05]} Nc6 {[%emt 0:00:55]} 3. Bb5 {[%emt 0:00:06]} a6 {[%emt 0:00:16]} 4. Ba4 {[%emt 0:00:04]} g6 {[%emt 0:00:06]} 5. c3 {[%emt 0:01:22][%cal Bc2c3,Bc3d4,Bd4d5][%mdl 32]} Bg7 {[%emt 0:03:03]} 6. d4 {[%emt 0:00:10] C70: Ruy Lopez: 3...a6 4 Ba4, Norwegian and Delayed Schliemann.} exd4 {[%emt 0:00:12]} 7. cxd4 {[%emt 0:00:05]} b5 {[%emt 0:00:05]} 8. Bc2 {[%emt 0:00:04] White is slightly better.} d6 {[%emt 0:01:08]} 9. d5 {[%emt 0:00:27]} Na5 {[%emt 0:00:10]} 10. O-O {[%emt 0:00:08]} Ne7 {[%emt 0:03:23]} 11. Nc3 {[%emt 0:00:05] [#]} Bg4 $146 {[%emt 0:00:38]} ({Predecessor:} 11... O-O 12. Rb1 h6 13. h3 c6 14. dxc6 Nexc6 15. Nd5 Nc4 16. b3 N4e5 17. Bb2 Be6 {½-½ (41) Balogh,C (2645)-Tkachiev,V (2658) Reykjavik 2015}) 12. h3 {[%emt 0:00:23]} Bxf3 {[%emt 0:00:07]} 13. Qxf3 {[%emt 0:00:04]} O-O {[%emt 0:01:29]} 14. Re1 {[%emt 0:05:01]} c5 {[%emt 0:04:50]} 15. dxc6 {[%emt 0:04:23]} Nexc6 {[%emt 0:00:14]} 16. Qd1 {[%emt 0:02:31]} Nc4 {[%emt 0:03:09]} 17. Bd3 {[%emt 0:02:49]} Rc8 {[%emt 0:05:43]} 18. Bxc4 {[%emt 0:17:40]} bxc4 {[%emt 0:00:05]} 19. Rb1 {[%emt 0:00:28]} Nb4 {[%emt 0:03:06]} 20. Nd5 {[%emt 0:01:23]} Nxd5 {[%emt 0:05:24]} 21. Qxd5 {[%emt 0:00:32]} Rc5 {[%emt 0:00:29]} 22. Qd1 {[%emt 0:01:56]} d5 {[%emt 0:02:36] Weighted Error Value: White=0.07 (flawless) /Black=0.04 (flawless)} 1/2-1/2

[Event "2nd Serbia Open Masters 2022"]
[Site "Novi Sad"]
[Date "2022.07.01"]
[Round "4.17"]
[White "Padmini, Rout"]
[Black "Pranav Vijay"]
[Result "1/2-1/2"]
[ECO "C58"]
[WhiteElo "2348"]
[BlackElo "2265"]
[Annotator "TA"]
[PlyCount "80"]
[EventDate "2022.06.28"]
[EventType "swiss"]
[EventCountry "SRB"]
[SourceTitle "playchess.com"]
[Source "ChessBase"]
[SourceQuality "1"]
[TimeControl "40/5400+30:900+30"]

{[%evp 15,80,27,41,41,45,41,72,60,78,79,86,75,137,123,139,147,135,132,145,131,148,148,149,141,129,139,152,54,207,206,192,204,208,206,199,186,192,193,263,223,216,212,547,535,669,649,652,0,365,-54,-61,-66,824,0,0,0,0,0,0,0,0,0,0,0,0,0,0]} 1. e4 {[%emt 0:00:06]} e5 {[%emt 0:02:02]} 2. Nf3 {[%emt 0:00:08]} Nc6 {[%emt 0:00:13]} 3. Bc4 {[%emt 0:00:27]} Nf6 {[%emt 0:00:10]} 4. Ng5 {[%emt 1:31:49]} d5 {[%emt 0:06:45]} 5. exd5 {[%emt 0:00:00]} Na5 {[%emt 0:00:06]} 6. Bb5+ {[%emt 0:00:00]} Bd7 {[%emt 0:00:10]} 7. Qe2 {[%emt 0:00:00]} Bd6 {[%emt 0:01:59]} 8. Nc3 {[%emt 0:00:00]} O-O {[%emt 0:01:06]} 9. Bxd7 {[%emt 0:00:00] C58: Two Knights: 4 Ng5 d5 5 exd5 Na5 sidelines.} Qxd7 {[%emt 0:01:19]} 10. a3 {[%emt 0:00:00] Prevents Bb4.} b6 {[%emt 0:02:37]} 11. O-O {[%emt 0:00:00] White is better.} h6 {[%emt 0:06:21]} 12. Nge4 {[%emt 0:00:00]} Nxe4 {[%emt 0:07:01]} 13. Nxe4 {[%emt 0:00:00]} f5 {[%emt 0:00:37]} (13... Nb7 $142) 14. Nxd6 $16 {[%emt 0:00:00] [#]} cxd6 $146 {[%emt 0:00:28]} ({Predecessor:} 14... Qxd6 15. b4 Nb7 16. Bb2 Rae8 17. c4 Re7 18. Rae1 Rfe8 19. d3 Qd7 20. Qd2 e4 {1-0 (28) Sipos,I (2445)-Plenca,J (2034) Pula 2012}) 15. b4 {[%emt 0:00:00]} Nb7 {[%emt 0:00:02]} 16. d3 {[%emt 0:06:00]} Rae8 {[%emt 0:01:46]} 17. Bb2 {[%emt 0:00:00]} f4 {[%emt 0:02:43][%cal Of4f3]} 18. f3 {[%emt 0:00:00]} Nd8 {[%emt 0:04:23]} 19. c4 {[%emt 0:00:00]} Nf7 {[%emt 0:01:07]} 20. a4 {[%emt 0:00:00]} h5 {[%emt 0:05:47]} 21. d4 {[%emt 0:00:00]} (21. b5 $16) 21... Ng5 $2 {[%emt 0:11:05]} (21... Qf5 $1 $14) 22. dxe5 $18 {[%emt 0:00:00]} dxe5 {[%emt 0:00:01]} 23. h4 {[%emt 0:00:00]} (23. Bxe5 Rf5 24. a5 Rfxe5 $17) 23... Nf7 {[%emt 0:00:15]} 24. a5 {[%emt 0:00:00]} Qd8 {[%emt 0:04:44]} 25. axb6 {[%emt 0:00:00]} axb6 {[%emt 0:00:15]} 26. Ra7 {[%emt 0:00:00]} Nd6 {[%emt 0:13:38]} (26... b5 $142 27. Rd1 (27. cxb5 Qb6+ 28. Qf2 Qxb5 $16) 27... Qb6+ 28. Qf2 Qxf2+ 29. Kxf2 bxc4) 27. c5 {[%emt 0:00:00]} (27. Bxe5 Nf7 28. Rxf7 Rxf7 $11) 27... bxc5 {[%emt 0:11:15]} 28. bxc5 {[%emt 0:00:00]} Nf5 {[%emt 0:03:12]} (28... Nc8 {is more resistant.}) 29. d6 {[%emt 0:00:00]} Ng3 {[%emt 0:07:07]} 30. Qc4+ {[%emt 0:00:00]} Kh8 {[%emt 0:00:02]} 31. Re1 {[%emt 0:00:00]} Qxh4 {[%emt 0:02:19] [#]} 32. Bxe5 $2 {[%emt 0:00:00] [#] Dancing on a razor blade.} ({White must play} 32. d7 $1 $18 {[%cal Rd7e8]} Re7 33. Qd3 (33. Rxe5 $2 Qh1+ 34. Kf2 Qd1 $19)) 32... Rxe5 $15 {[%emt 0:01:27]} 33. Rxe5 {[%emt 0:00:00]} Qh1+ {[%emt 0:00:03]} (33... Rb8 $15 34. Rb7 Rxb7 35. Re8+ Kh7 36. Qc2+ (36. c6 {leads to mate.} Qh1+ 37. Kf2 Rb2+) 36... g6) 34. Kf2 $11 {[%emt 0:00:00]} Qd1 {[%emt 0:00:03][%cal Rg3h1] The position is equal.} 35. Re1 {[%emt 0:01:31]} Qd2+ {[%emt 0:01:03]} 36. Re2 $1 {[%emt 0:00:04]} Nh1+ {[%emt 0:01:35]} (36... Qd1 $5 37. Re1 Qd2+ 38. Re2 Nh1+ 39. Kf1 (39. Kg1 Qd1+ 40. Re1 Qxe1+ $11) 39... Ng3+ 40. Kf2 $11) 37. Kf1 {[%emt 0:00:39]} Ng3+ {[%emt 0:00:39]} 38. Kf2 $1 {[%emt 0:00:35]} Qd1 {[%emt 0:02:40][%csl Gg3][%cal Rd1f1]} 39. Re1 {[%emt 0:00:26] Inhibits Qf1+.} Qd2+ {[%emt 0:00:25]} 40. Re2 $1 {[%emt 0:00:00]} Qd1 {[%emt 0:00:00] Weighted Error Value: White=0.44/Black=0.46} 1/2-1/2